[Event "Titled Tuesday Blitz November 15 Late 2022"]
[White "Korchmar, Vasiliy"]
[Black "Kumala, Aleksander"]
[WhiteFideId "24131750"]
[BlackFideId "1141880"]
[WhiteElo "2370"]
[BlackElo "2269"]
[Result "1-0"]
[Round "08"]
[TimeControl "180+1"]
[Date "2022.11.16"]
[WhiteClock "0:00:05"]
[BlackClock "0:00:03"]

1. e4 {[%clk 0:03:00]}  e5 {[%clk 0:02:59]} 2. Nf3 {[%clk 0:03:01]}  Nc6 {[%clk 0:02:59]} 3. Bc4 {[%clk 0:03:01]}  Nf6 {[%clk 0:03:00]} 4. d3 {[%clk 0:03:01]}  Bc5 {[%clk 0:03:00]} 5. c3 {[%clk 0:03:01]}  a6 {[%clk 0:03:00]} 6. Bg5 {[%clk 0:03:00]}  d6 {[%clk 0:02:59]} 7. Nbd2 {[%clk 0:02:59]}  h6 {[%clk 0:03:00]} 8. Bh4 {[%clk 0:02:58]}  Be6 {[%clk 0:02:59]} 9. Bxe6 {[%clk 0:02:54]}  fxe6 {[%clk 0:02:59]} 10. Qb3 {[%clk 0:02:55]}  Kd7 {[%clk 0:02:47]} 11. O-O {[%clk 0:02:48]}  Bb6 {[%clk 0:02:44]} 12. Nc4 {[%clk 0:02:42]}  g5 {[%clk 0:02:42]} 13. Bg3 {[%clk 0:02:39]}  Nh5 {[%clk 0:02:35]} 14. d4 {[%clk 0:02:37]}  g4 {[%clk 0:02:27]} 15. Nh4 {[%clk 0:02:28]}  Nf4 {[%clk 0:02:27]} 16. dxe5 {[%clk 0:02:21]}  Ne2+ {[%clk 0:02:23]} 17. Kh1 {[%clk 0:02:21]}  Nxg3+ {[%clk 0:02:23]} 18. fxg3 {[%clk 0:02:21]}  Nxe5 {[%clk 0:02:22]} 19. Nxe5+ {[%clk 0:02:18]}  dxe5 {[%clk 0:02:21]} 20. Rad1+ {[%clk 0:02:18]}  Kc8 {[%clk 0:02:20]} 21. Qxe6+ {[%clk 0:02:18]}  Kb8 {[%clk 0:02:20]} 22. Rxd8+ {[%clk 0:02:18]}  Rxd8 {[%clk 0:02:21]} 23. Qxe5 {[%clk 0:02:12]}  Ka7 {[%clk 0:02:21]} 24. Nf5 {[%clk 0:02:06]}  Re8 {[%clk 0:02:21]} 25. Qf4 {[%clk 0:02:05]}  h5 {[%clk 0:02:21]} 26. e5 {[%clk 0:02:00]}  Rad8 {[%clk 0:02:20]} 27. Re1 {[%clk 0:01:59]}  Rd5 {[%clk 0:02:20]} 28. e6 {[%clk 0:01:58]}  Rxe6 {[%clk 0:02:20]} 29. Rf1 {[%clk 0:01:42]}  Re2 {[%clk 0:02:20]} 30. Nd4 {[%clk 0:01:41]}  Rxb2 {[%clk 0:02:16]} 31. a4 {[%clk 0:01:38]}  Ra2 {[%clk 0:02:07]} 32. h3 {[%clk 0:01:36]}  Ra3 {[%clk 0:01:56]} 33. Ne2 {[%clk 0:01:21]}  Ra5 {[%clk 0:01:53]} 34. hxg4 {[%clk 0:01:12]}  R3xa4 {[%clk 0:01:53]} 35. c4 {[%clk 0:01:10]}  hxg4 {[%clk 0:01:50]} 36. Qxg4 {[%clk 0:01:07]}  Ra2 {[%clk 0:01:44]} 37. Nf4 {[%clk 0:01:03]}  Rc5 {[%clk 0:01:39]} 38. Nd5 {[%clk 0:01:01]}  Rc2 {[%clk 0:01:31]} 39. Nxb6 {[%clk 0:00:59]}  cxb6 {[%clk 0:01:31]} 40. Rf7 {[%clk 0:00:56]}  R2xc4 {[%clk 0:01:29]} 41. Qf3 {[%clk 0:00:46]}  Rc6 {[%clk 0:01:20]} 42. g4 {[%clk 0:00:46]}  a5 {[%clk 0:01:16]} 43. g5 {[%clk 0:00:47]}  a4 {[%clk 0:01:15]} 44. g6 {[%clk 0:00:46]}  Rc3 {[%clk 0:01:02]} 45. Qd5 {[%clk 0:00:44]}  Ka6 {[%clk 0:00:52]} 46. g7 {[%clk 0:00:42]}  Rc1+ {[%clk 0:00:50]} 47. Kh2 {[%clk 0:00:42]}  Rh6+ {[%clk 0:00:50]} 48. Kg3 {[%clk 0:00:42]}  Rg6+ {[%clk 0:00:50]} 49. Kf2 {[%clk 0:00:37]}  Rc2+ {[%clk 0:00:48]} 50. Ke3 {[%clk 0:00:32]}  Rcxg2 {[%clk 0:00:48]} 51. Qxb7+ {[%clk 0:00:29]}  Ka5 {[%clk 0:00:48]} 52. Qd5+ {[%clk 0:00:25]}  Kb4 {[%clk 0:00:43]} 53. Rf4+ {[%clk 0:00:21]}  Ka3 {[%clk 0:00:40]} 54. Qd3+ {[%clk 0:00:21]}  Kb2 {[%clk 0:00:37]} 55. Rb4+ {[%clk 0:00:21]}  Ka2 {[%clk 0:00:33]} 56. Qb1+ {[%clk 0:00:19]}  Ka3 {[%clk 0:00:33]} 57. Rf4 {[%clk 0:00:06]}  R6g3+ {[%clk 0:00:29]} 58. Ke4 {[%clk 0:00:06]}  b5 {[%clk 0:00:15]} 59. Qa1+ {[%clk 0:00:04]}  Kb3 {[%clk 0:00:13]} 60. Qb1+ {[%clk 0:00:04]}  Ka3 {[%clk 0:00:13]} 61. Rf3+ {[%clk 0:00:05]}  Rxf3 {[%clk 0:00:13]} 62. Kxf3 {[%clk 0:00:06]}  Rxg7 {[%clk 0:00:05]} 63. Qa1+ {[%clk 0:00:06]}  Kb3 {[%clk 0:00:06]} 64. Qxg7 {[%clk 0:00:07]}  Ka2 {[%clk 0:00:06]} 65. Ke2 {[%clk 0:00:06]}  b4 {[%clk 0:00:06]} 66. Kd2 {[%clk 0:00:06]}  b3 {[%clk 0:00:06]} 67. Qf7 {[%clk 0:00:04]}  Kb2 {[%clk 0:00:02]} 68. Qf6+ {[%clk 0:00:04]}  Ka2 {[%clk 0:00:02]} 69. Qe6 {[%clk 0:00:04]}  Kb2 {[%clk 0:00:03]} 70. Qe5+ {[%clk 0:00:04]}  Ka2 {[%clk 0:00:03]} 71. Qd5 {[%clk 0:00:05]}  a3 {[%clk 0:00:03]} 72. Kc3 {[%clk 0:00:05]}  Ka1 {[%clk 0:00:03]} 73. Qxb3 {[%clk 0:00:04]}  a2 {[%clk 0:00:03]} 74. Qd1# {[%clk 0:00:05]} 1-0


[Site "https://www.chess.com"]

[Event "Titled Tuesday Blitz November 15 Late 2022"]
[White "Koutlas, Nikolaos"]
[Black "Radovanovic, Dusan"]
[WhiteFideId "25827138"]
[BlackFideId "926868"]
[WhiteElo "2167"]
[BlackElo "2341"]
[Result "0-1"]
[Round "08"]
[TimeControl "180+1"]
[Date "2022.11.16"]
[WhiteClock "0:00:01"]
[BlackClock "0:00:16"]

1. e4 {[%clk 0:03:00]}  c5 {[%clk 0:02:58]} 2. Nf3 {[%clk 0:02:58]}  d6 {[%clk 0:02:58]} 3. d4 {[%clk 0:02:55]}  cxd4 {[%clk 0:02:59]} 4. Nxd4 {[%clk 0:02:55]}  Nf6 {[%clk 0:02:59]} 5. Nc3 {[%clk 0:02:55]}  g6 {[%clk 0:02:57]} 6. Be2 {[%clk 0:02:53]}  Bg7 {[%clk 0:02:57]} 7. O-O {[%clk 0:02:53]}  O-O {[%clk 0:02:58]} 8. Be3 {[%clk 0:02:51]}  Nc6 {[%clk 0:02:58]} 9. Qd2 {[%clk 0:02:48]}  Bd7 {[%clk 0:02:41]} 10. h3 {[%clk 0:02:46]}  Rc8 {[%clk 0:02:33]} 11. Rad1 {[%clk 0:02:46]}  a6 {[%clk 0:02:27]} 12. Nb3 {[%clk 0:02:39]}  b5 {[%clk 0:02:24]} 13. Bd3 {[%clk 0:02:37]}  Ne5 {[%clk 0:02:18]} 14. Nd5 {[%clk 0:02:33]}  Nc4 {[%clk 0:02:06]} 15. Bxc4 {[%clk 0:02:31]}  Rxc4 {[%clk 0:02:01]} 16. Bb6 {[%clk 0:02:22]}  Qe8 {[%clk 0:02:01]} 17. Rfe1 {[%clk 0:01:19]}  Nxd5 {[%clk 0:01:16]} 18. exd5 {[%clk 0:01:15]}  Bf6 {[%clk 0:01:14]} 19. c3 {[%clk 0:01:13]}  Qb8 {[%clk 0:01:07]} 20. Bd4 {[%clk 0:01:09]}  b4 {[%clk 0:01:05]} 21. Qh6 {[%clk 0:01:00]}  bxc3 {[%clk 0:01:01]} 22. bxc3 {[%clk 0:00:58]}  Re8 {[%clk 0:00:58]} 23. Rxe7 {[%clk 0:00:56]}  Bxd4 {[%clk 0:00:56]} 24. Rxe8+ {[%clk 0:00:40]}  Qxe8 {[%clk 0:00:53]} 25. cxd4 {[%clk 0:00:36]}  Qe4 {[%clk 0:00:39]} 26. Qg5 {[%clk 0:00:33]}  Kg7 {[%clk 0:00:33]} 27. Qd8 {[%clk 0:00:28]}  Ba4 {[%clk 0:00:20]} 28. Qxd6 {[%clk 0:00:14]}  Bxb3 {[%clk 0:00:19]} 29. axb3 {[%clk 0:00:14]}  Rxd4 {[%clk 0:00:20]} 30. Rxd4 {[%clk 0:00:11]}  Qxd4 {[%clk 0:00:21]} 31. Qxa6 {[%clk 0:00:09]}  Qxd5 {[%clk 0:00:18]} 32. Qc4 {[%clk 0:00:09]}  Qd1+ {[%clk 0:00:17]} 33. Kh2 {[%clk 0:00:10]}  Qd6+ {[%clk 0:00:18]} 34. g3 {[%clk 0:00:10]}  Qf6 {[%clk 0:00:18]} 35. Kg2 {[%clk 0:00:09]}  Qb2 {[%clk 0:00:18]} 36. Qd5 {[%clk 0:00:08]}  h5 {[%clk 0:00:18]} 37. h4 {[%clk 0:00:09]}  Qc2 {[%clk 0:00:17]} 38. b4 {[%clk 0:00:07]}  Qc7 {[%clk 0:00:16]} 39. b5 {[%clk 0:00:06]}  Qb6 {[%clk 0:00:16]} 40. Qc6 {[%clk 0:00:06]}  Qd4 {[%clk 0:00:15]} 41. b6 {[%clk 0:00:06]}  Qb4 {[%clk 0:00:16]} 42. b7 {[%clk 0:00:01]}  g5 {[%clk 0:00:16]} 0-1


[Site "https://www.chess.com"]

[Event "Titled Tuesday Blitz November 15 Late 2022"]
[White "Krishnan, Varun"]
[Black "Fernandez De La Vara, Arnaldo"]
[WhiteFideId "5054508"]
[BlackFideId "3518388"]
[WhiteElo "2560"]
[BlackElo "2733"]
[Result "0-1"]
[Round "08"]
[TimeControl "180+1"]
[Date "2022.11.16"]
[WhiteClock "0:00:06"]
[BlackClock "0:00:03"]

1. e4 {[%clk 0:03:00]}  c5 {[%clk 0:03:00]} 2. Nf3 {[%clk 0:02:58]}  e6 {[%clk 0:03:01]} 3. d4 {[%clk 0:02:53]}  cxd4 {[%clk 0:03:02]} 4. Nxd4 {[%clk 0:02:54]}  a6 {[%clk 0:03:03]} 5. Bd3 {[%clk 0:02:50]}  Nf6 {[%clk 0:03:03]} 6. O-O {[%clk 0:02:46]}  d6 {[%clk 0:03:03]} 7. Nb3 {[%clk 0:02:41]}  g6 {[%clk 0:03:03]} 8. a4 {[%clk 0:02:36]}  b6 {[%clk 0:02:47]} 9. Be3 {[%clk 0:02:31]}  Bb7 {[%clk 0:02:44]} 10. a5 {[%clk 0:02:28]}  b5 {[%clk 0:02:42]} 11. c4 {[%clk 0:02:23]}  bxc4 {[%clk 0:02:40]} 12. Bxc4 {[%clk 0:02:21]}  Nxe4 {[%clk 0:02:33]} 13. Nd4 {[%clk 0:02:21]}  Bg7 {[%clk 0:02:27]} 14. Bxe6 {[%clk 0:01:55]}  fxe6 {[%clk 0:02:23]} 15. Nxe6 {[%clk 0:01:54]}  Qe7 {[%clk 0:02:18]} 16. Nxg7+ {[%clk 0:01:54]}  Qxg7 {[%clk 0:02:18]} 17. Bd4 {[%clk 0:01:54]}  Qf8 {[%clk 0:02:06]} 18. Nc3 {[%clk 0:01:40]}  Nxc3 {[%clk 0:01:50]} 19. Bxc3 {[%clk 0:01:38]}  Rg8 {[%clk 0:01:31]} 20. Qb3 {[%clk 0:01:36]}  Qf7 {[%clk 0:01:27]} 21. Qb4 {[%clk 0:01:24]}  Qd5 {[%clk 0:01:13]} 22. Rfe1+ {[%clk 0:01:13]}  Kd7 {[%clk 0:01:12]} 23. Qg4+ {[%clk 0:01:00]}  Qf5 {[%clk 0:01:10]} 24. Qh4 {[%clk 0:00:59]}  g5 {[%clk 0:01:07]} 25. Qa4+ {[%clk 0:00:43]}  Nc6 {[%clk 0:01:01]} 26. Rad1 {[%clk 0:00:41]}  Rae8 {[%clk 0:00:59]} 27. Qb3 {[%clk 0:00:40]}  Kc7 {[%clk 0:00:51]} 28. Bb4 {[%clk 0:00:31]}  Rxe1+ {[%clk 0:00:45]} 29. Rxe1 {[%clk 0:00:30]}  Rg6 {[%clk 0:00:43]} 30. Bc3 {[%clk 0:00:29]}  Qd7 {[%clk 0:00:24]} 31. Qb6+ {[%clk 0:00:20]}  Kc8 {[%clk 0:00:23]} 32. b4 {[%clk 0:00:19]}  Re6 {[%clk 0:00:23]} 33. Rc1 {[%clk 0:00:19]}  Qc7 {[%clk 0:00:21]} 34. Bd2 {[%clk 0:00:15]}  Qxb6 {[%clk 0:00:21]} 35. axb6 {[%clk 0:00:15]}  Kd7 {[%clk 0:00:21]} 36. Bxg5 {[%clk 0:00:14]}  Re4 {[%clk 0:00:16]} 37. Bd2 {[%clk 0:00:12]}  Rd4 {[%clk 0:00:16]} 38. Be1 {[%clk 0:00:12]}  Ke6 {[%clk 0:00:11]} 39. f3 {[%clk 0:00:12]}  Kd5 {[%clk 0:00:12]} 40. Kf2 {[%clk 0:00:12]}  Rc4 {[%clk 0:00:12]} 41. Rd1+ {[%clk 0:00:10]}  Ke6 {[%clk 0:00:13]} 42. g4 {[%clk 0:00:09]}  Nxb4 {[%clk 0:00:13]} 43. Bxb4 {[%clk 0:00:09]}  Rxb4 {[%clk 0:00:14]} 44. Kg3 {[%clk 0:00:08]}  Rxb6 {[%clk 0:00:13]} 45. f4 {[%clk 0:00:08]}  Rb4 {[%clk 0:00:03]} 46. f5+ {[%clk 0:00:07]}  Ke7 {[%clk 0:00:04]} 47. Kh4 {[%clk 0:00:06]}  Bf3 {[%clk 0:00:03]} 48. h3 {[%clk 0:00:06]}  Bxd1 {[%clk 0:00:03]} 0-1


[Site "https://www.chess.com"]

[Event "Titled Tuesday Blitz November 15 Late 2022"]
[White "Kujawski, Adam"]
[Black "Curtis, John"]
[WhiteFideId "1100920"]
[BlackFideId "3200256"]
[WhiteElo "2053"]
[BlackElo "2203"]
[Result "0-1"]
[Round "08"]
[TimeControl "180+1"]
[Date "2022.11.16"]
[WhiteClock "0:00:05"]
[BlackClock "0:01:17"]

1. e4 {[%clk 0:02:57]}  c5 {[%clk 0:02:58]} 2. Nf3 {[%clk 0:02:57]}  d6 {[%clk 0:02:58]} 3. d4 {[%clk 0:02:58]}  cxd4 {[%clk 0:02:58]} 4. Nxd4 {[%clk 0:02:58]}  Nf6 {[%clk 0:02:58]} 5. Nc3 {[%clk 0:02:58]}  a6 {[%clk 0:02:56]} 6. Bg5 {[%clk 0:02:58]}  e6 {[%clk 0:02:56]} 7. f4 {[%clk 0:02:58]}  Qc7 {[%clk 0:02:53]} 8. Bxf6 {[%clk 0:02:57]}  gxf6 {[%clk 0:02:53]} 9. Qd2 {[%clk 0:02:57]}  Nc6 {[%clk 0:02:52]} 10. O-O-O {[%clk 0:02:54]}  Bh6 {[%clk 0:02:44]} 11. g3 {[%clk 0:02:53]}  Nxd4 {[%clk 0:02:38]} 12. Qxd4 {[%clk 0:02:53]}  e5 {[%clk 0:02:37]} 13. Nd5 {[%clk 0:02:40]}  Qd8 {[%clk 0:02:36]} 14. Qc3 {[%clk 0:01:18]}  O-O {[%clk 0:02:33]} 15. Kb1 {[%clk 0:01:17]}  Be6 {[%clk 0:02:31]} 16. f5 {[%clk 0:00:58]}  Bxd5 {[%clk 0:02:19]} 17. Rxd5 {[%clk 0:00:58]}  Rc8 {[%clk 0:02:18]} 18. Qf3 {[%clk 0:00:58]}  Rc5 {[%clk 0:02:05]} 19. Rxc5 {[%clk 0:00:53]}  dxc5 {[%clk 0:02:05]} 20. Bc4 {[%clk 0:00:53]}  b5 {[%clk 0:02:04]} 21. Rd1 {[%clk 0:00:49]}  Qa5 {[%clk 0:01:56]} 22. Bd5 {[%clk 0:00:47]}  c4 {[%clk 0:01:52]} 23. c3 {[%clk 0:00:45]}  b4 {[%clk 0:01:44]} 24. cxb4 {[%clk 0:00:42]}  Qxb4 {[%clk 0:01:43]} 25. a3 {[%clk 0:00:39]}  Qb5 {[%clk 0:01:35]} 26. Qc3 {[%clk 0:00:14]}  Rb8 {[%clk 0:01:27]} 27. Bxc4 {[%clk 0:00:10]}  Qb6 {[%clk 0:01:18]} 28. Rd7 {[%clk 0:00:08]}  Be3 {[%clk 0:01:18]} 29. Rxf7 {[%clk 0:00:05]}  Kh8 {[%clk 0:01:17]} 0-1


[Site "https://www.chess.com"]

[Event "Titled Tuesday Blitz November 15 Late 2022"]
[White "Leiva, Gianmarco"]
[Black "Bilan, Danila"]
[WhiteFideId "3804399"]
[BlackFideId "24161918"]
[WhiteElo "2286"]
[BlackElo "2173"]
[Result "0-1"]
[Round "08"]
[TimeControl "180+1"]
[Date "2022.11.16"]
[WhiteClock "0:01:57"]
[BlackClock "0:00:09"]

1. e4 {[%clk 0:02:50]}  c6 {[%clk 0:02:59]} 2. d4 {[%clk 0:02:50]}  d5 {[%clk 0:02:59]} 3. e5 {[%clk 0:02:50]}  c5 {[%clk 0:02:58]} 4. dxc5 {[%clk 0:02:50]}  e6 {[%clk 0:02:58]} 5. a3 {[%clk 0:02:49]}  Bxc5 {[%clk 0:02:58]} 6. Qg4 {[%clk 0:02:50]}  Ne7 {[%clk 0:02:26]} 7. Qxg7 {[%clk 0:02:49]}  Rg8 {[%clk 0:02:26]} 8. Qxh7 {[%clk 0:02:48]}  Qb6 {[%clk 0:02:24]} 9. Nh3 {[%clk 0:02:47]}  Bd4 {[%clk 0:02:15]} 10. Nc3 {[%clk 0:02:41]}  Bxe5 {[%clk 0:02:06]} 11. Qd3 {[%clk 0:02:29]}  Nbc6 {[%clk 0:01:56]} 12. f4 {[%clk 0:02:13]}  Bd4 {[%clk 0:01:24]} 13. Ng5 {[%clk 0:02:10]}  Bf2+ {[%clk 0:01:07]} 14. Kd1 {[%clk 0:02:09]}  Nf5 {[%clk 0:00:56]} 15. Be2 {[%clk 0:02:04]}  Bd7 {[%clk 0:00:46]} 16. Rf1 {[%clk 0:02:04]}  Ne3+ {[%clk 0:00:25]} 17. Bxe3 {[%clk 0:02:05]}  Bxe3 {[%clk 0:00:26]} 18. Na4 {[%clk 0:02:05]}  Qd4 {[%clk 0:00:24]} 19. g3 {[%clk 0:01:54]}  Rh8 {[%clk 0:00:14]} 20. Nf3 {[%clk 0:01:54]}  Qxd3+ {[%clk 0:00:13]} 21. Bxd3 {[%clk 0:01:55]}  Nd4 {[%clk 0:00:09]} 22. c3 {[%clk 0:01:47]}  Nxf3 {[%clk 0:00:07]} 23. Rxf3 {[%clk 0:01:48]}  Bxa4+ {[%clk 0:00:07]} 24. Ke2 {[%clk 0:01:46]}  Bc5 {[%clk 0:00:06]} 25. h4 {[%clk 0:01:47]}  O-O-O {[%clk 0:00:06]} 26. Rh1 {[%clk 0:01:48]}  Bc6 {[%clk 0:00:06]} 27. b4 {[%clk 0:01:48]}  Bb6 {[%clk 0:00:06]} 28. Rff1 {[%clk 0:01:46]}  d4 {[%clk 0:00:07]} 29. c4 {[%clk 0:01:47]}  Bxh1 {[%clk 0:00:06]} 30. Rxh1 {[%clk 0:01:48]}  Bc7 {[%clk 0:00:07]} 31. Kf3 {[%clk 0:01:48]}  f5 {[%clk 0:00:06]} 32. Re1 {[%clk 0:01:48]}  a5 {[%clk 0:00:05]} 33. c5 {[%clk 0:01:49]}  axb4 {[%clk 0:00:05]} 34. axb4 {[%clk 0:01:50]}  Kd7 {[%clk 0:00:05]} 35. Bb5+ {[%clk 0:01:50]}  Ke7 {[%clk 0:00:06]} 36. Bc4 {[%clk 0:01:51]}  Rh6 {[%clk 0:00:06]} 37. Ra1 {[%clk 0:01:51]}  Bb8 {[%clk 0:00:06]} 38. Ke2 {[%clk 0:01:51]}  e5 {[%clk 0:00:06]} 39. fxe5 {[%clk 0:01:49]}  Bxe5 {[%clk 0:00:07]} 40. Kf3 {[%clk 0:01:50]}  d3 {[%clk 0:00:07]} 41. Re1 {[%clk 0:01:50]}  Kf6 {[%clk 0:00:07]} 42. Rd1 {[%clk 0:01:51]}  d2 {[%clk 0:00:07]} 43. b5 {[%clk 0:01:50]}  Rh7 {[%clk 0:00:06]} 44. Ke2 {[%clk 0:01:49]}  Bxg3 {[%clk 0:00:05]} 45. Rxd2 {[%clk 0:01:49]}  Rxd2+ {[%clk 0:00:05]} 46. Kxd2 {[%clk 0:01:50]}  Rxh4 {[%clk 0:00:05]} 47. Bd5 {[%clk 0:01:51]}  b6 {[%clk 0:00:04]} 48. Kc3 {[%clk 0:01:52]}  bxc5 {[%clk 0:00:04]} 49. Bc4 {[%clk 0:01:52]}  Bd6 {[%clk 0:00:04]} 50. b6 {[%clk 0:01:53]}  Rh8 {[%clk 0:00:04]} 51. Bd5 {[%clk 0:01:54]}  Rb8 {[%clk 0:00:05]} 52. b7 {[%clk 0:01:54]}  Ke5 {[%clk 0:00:06]} 53. Kc4 {[%clk 0:01:55]}  f4 {[%clk 0:00:07]} 54. Bf3 {[%clk 0:01:55]}  Kf6 {[%clk 0:00:06]} 55. Kb5 {[%clk 0:01:56]}  Ke5 {[%clk 0:00:07]} 56. Kc6 {[%clk 0:01:57]}  Rh8 {[%clk 0:00:06]} 57. Kd7 {[%clk 0:01:57]}  Bb8 {[%clk 0:00:07]} 58. Bh5 {[%clk 0:01:56]}  Kd4 {[%clk 0:00:07]} 59. Be8 {[%clk 0:01:55]}  c4 {[%clk 0:00:08]} 60. Kc8 {[%clk 0:01:56]}  Rxe8+ {[%clk 0:00:08]} 61. Kd7 {[%clk 0:01:57]}  Rh8 {[%clk 0:00:09]} 0-1


[Site "https://www.chess.com"]

[Event "Titled Tuesday Blitz November 15 Late 2022"]
[White "Li, Xueyi"]
[Black "Dzierzak, Radoslaw"]
[WhiteFideId "8605912"]
[BlackFideId "1161407"]
[WhiteElo "2197"]
[BlackElo "2111"]
[Result "0-1"]
[Round "08"]
[TimeControl "180+1"]
[Date "2022.11.16"]
[WhiteClock "0:00:18"]
[BlackClock "0:00:04"]

1. d4 {[%clk 0:02:54]}  Nf6 {[%clk 0:02:59]} 2. c4 {[%clk 0:02:53]}  e6 {[%clk 0:02:59]} 3. g3 {[%clk 0:02:53]}  Bb4+ {[%clk 0:02:59]} 4. Bd2 {[%clk 0:02:52]}  a5 {[%clk 0:02:59]} 5. Bg2 {[%clk 0:02:52]}  d6 {[%clk 0:02:58]} 6. Nf3 {[%clk 0:02:50]}  Nbd7 {[%clk 0:02:59]} 7. O-O {[%clk 0:02:50]}  e5 {[%clk 0:02:58]} 8. Bg5 {[%clk 0:02:43]}  exd4 {[%clk 0:02:57]} 9. Nxd4 {[%clk 0:02:42]}  h6 {[%clk 0:02:57]} 10. Bc1 {[%clk 0:02:39]}  Ne5 {[%clk 0:02:50]} 11. b3 {[%clk 0:02:37]}  O-O {[%clk 0:02:44]} 12. Bb2 {[%clk 0:02:37]}  c6 {[%clk 0:02:41]} 13. Nf3 {[%clk 0:02:32]}  Nxf3+ {[%clk 0:02:32]} 14. Bxf3 {[%clk 0:02:32]}  Bh3 {[%clk 0:02:32]} 15. Bg2 {[%clk 0:02:33]}  Bxg2 {[%clk 0:02:32]} 16. Kxg2 {[%clk 0:02:32]}  Qe7 {[%clk 0:02:31]} 17. a3 {[%clk 0:02:32]}  Bc5 {[%clk 0:02:28]} 18. Nc3 {[%clk 0:02:32]}  Rad8 {[%clk 0:02:23]} 19. Rc1 {[%clk 0:02:19]}  d5 {[%clk 0:02:16]} 20. cxd5 {[%clk 0:02:18]}  Nxd5 {[%clk 0:02:16]} 21. Nxd5 {[%clk 0:02:06]}  Rxd5 {[%clk 0:02:17]} 22. Qc2 {[%clk 0:02:03]}  Bxa3 {[%clk 0:02:08]} 23. Bxa3 {[%clk 0:02:01]}  Qxa3 {[%clk 0:02:08]} 24. Ra1 {[%clk 0:02:01]}  Qd6 {[%clk 0:01:57]} 25. Rfd1 {[%clk 0:02:00]}  Rd8 {[%clk 0:01:53]} 26. Rxd5 {[%clk 0:01:59]}  Qxd5+ {[%clk 0:01:53]} 27. e4 {[%clk 0:01:59]}  Qb5 {[%clk 0:01:45]} 28. Rd1 {[%clk 0:01:59]}  Rxd1 {[%clk 0:01:27]} 29. Qxd1 {[%clk 0:01:59]}  g6 {[%clk 0:01:18]} 30. h4 {[%clk 0:01:45]}  h5 {[%clk 0:01:17]} 31. Qd8+ {[%clk 0:01:44]}  Kh7 {[%clk 0:01:10]} 32. Qd1 {[%clk 0:01:44]}  Qe5 {[%clk 0:01:03]} 33. Qf3 {[%clk 0:01:42]}  Kg7 {[%clk 0:01:02]} 34. Qd3 {[%clk 0:01:42]}  b5 {[%clk 0:01:01]} 35. f4 {[%clk 0:01:42]}  Qb2+ {[%clk 0:01:01]} 36. Kh3 {[%clk 0:01:40]}  a4 {[%clk 0:01:02]} 37. bxa4 {[%clk 0:01:39]}  bxa4 {[%clk 0:01:02]} 38. e5 {[%clk 0:01:33]}  Qb3 {[%clk 0:01:01]} 39. Qd4 {[%clk 0:01:26]}  Qe6+ {[%clk 0:00:59]} 40. Kg2 {[%clk 0:01:26]}  a3 {[%clk 0:00:59]} 41. Qa1 {[%clk 0:01:23]}  a2 {[%clk 0:00:55]} 42. Kh2 {[%clk 0:01:24]}  Kh7 {[%clk 0:00:54]} 43. Qd4 {[%clk 0:01:21]}  Qd5 {[%clk 0:00:47]} 44. Qa7 {[%clk 0:01:20]}  Qe6 {[%clk 0:00:18]} 45. Qa3 {[%clk 0:01:18]}  Qc4 {[%clk 0:00:12]} 46. Qb2 {[%clk 0:01:17]}  Qd5 {[%clk 0:00:05]} 47. Qc3 {[%clk 0:01:13]}  Qe6 {[%clk 0:00:04]} 48. Qb2 {[%clk 0:01:12]}  Qc4 {[%clk 0:00:04]} 49. Kg2 {[%clk 0:01:04]}  Qa4 {[%clk 0:00:03]} 50. Qb7 {[%clk 0:00:41]}  Qc2+ {[%clk 0:00:03]} 51. Kf3 {[%clk 0:00:40]}  Qd3+ {[%clk 0:00:03]} 52. Kf2 {[%clk 0:00:39]}  Qc2+ {[%clk 0:00:03]} 53. Kf3 {[%clk 0:00:40]}  Kg7 {[%clk 0:00:04]} 54. Qe7 {[%clk 0:00:38]}  Qd3+ {[%clk 0:00:02]} 55. Kf2 {[%clk 0:00:38]}  Qf5 {[%clk 0:00:03]} 56. Qa3 {[%clk 0:00:37]}  Qc2+ {[%clk 0:00:03]} 57. Kf3 {[%clk 0:00:36]}  Qb1 {[%clk 0:00:03]} 58. Qd6 {[%clk 0:00:31]}  Qb3+ {[%clk 0:00:04]} 59. Kf2 {[%clk 0:00:30]}  Qc2+ {[%clk 0:00:03]} 60. Ke3 {[%clk 0:00:30]}  Qc3+ {[%clk 0:00:04]} 61. Kf2 {[%clk 0:00:29]}  Qc2+ {[%clk 0:00:03]} 62. Ke3 {[%clk 0:00:30]}  Qb3+ {[%clk 0:00:04]} 63. Kf2 {[%clk 0:00:30]}  Qe6 {[%clk 0:00:05]} 64. Qa3 {[%clk 0:00:28]}  c5 {[%clk 0:00:05]} 65. Qb2 {[%clk 0:00:26]}  Kh7 {[%clk 0:00:05]} 66. Ke3 {[%clk 0:00:21]}  Qc4 {[%clk 0:00:05]} 67. Kf3 {[%clk 0:00:19]}  Qb4 {[%clk 0:00:05]} 68. Qa1 {[%clk 0:00:18]}  Qb3+ {[%clk 0:00:04]} 0-1


[Site "https://www.chess.com"]

[Event "Titled Tuesday Blitz November 15 Late 2022"]
[White "Makridis, Dimitrios"]
[Black "Averjanov, Alexey"]
[WhiteFideId "25864475"]
[BlackFideId "14109867"]
[WhiteElo "2272"]
[BlackElo "2619"]
[Result "1-0"]
[Round "08"]
[TimeControl "180+1"]
[Date "2022.11.15"]
[WhiteClock "0:00:47"]
[BlackClock "0:00:01"]

1. e4 {[%clk 0:03:00]}  c6 {[%clk 0:02:59]} 2. d4 {[%clk 0:03:00]}  d5 {[%clk 0:02:59]} 3. exd5 {[%clk 0:03:01]}  cxd5 {[%clk 0:02:59]} 4. Bd3 {[%clk 0:03:01]}  Nc6 {[%clk 0:02:59]} 5. c3 {[%clk 0:03:02]}  Nf6 {[%clk 0:02:58]} 6. h3 {[%clk 0:03:02]}  g6 {[%clk 0:02:57]} 7. Nf3 {[%clk 0:03:02]}  Bf5 {[%clk 0:02:56]} 8. Ne5 {[%clk 0:03:02]}  Bxd3 {[%clk 0:02:55]} 9. Nxd3 {[%clk 0:03:03]}  Bg7 {[%clk 0:02:55]} 10. O-O {[%clk 0:03:03]}  O-O {[%clk 0:02:55]} 11. Bf4 {[%clk 0:03:03]}  e6 {[%clk 0:02:54]} 12. Nd2 {[%clk 0:03:04]}  Qe7 {[%clk 0:02:51]} 13. Re1 {[%clk 0:03:03]}  Rfc8 {[%clk 0:02:48]} 14. a3 {[%clk 0:03:02]}  Nd7 {[%clk 0:02:40]} 15. Qf3 {[%clk 0:03:01]}  a5 {[%clk 0:02:32]} 16. g3 {[%clk 0:02:50]}  b5 {[%clk 0:02:27]} 17. b4 {[%clk 0:02:50]}  Nb6 {[%clk 0:02:21]} 18. Nc5 {[%clk 0:02:47]}  axb4 {[%clk 0:02:07]} 19. axb4 {[%clk 0:02:48]}  Nc4 {[%clk 0:02:03]} 20. Nxc4 {[%clk 0:02:47]}  bxc4 {[%clk 0:02:03]} 21. b5 {[%clk 0:02:47]}  Na5 {[%clk 0:01:58]} 22. b6 {[%clk 0:02:44]}  Nb7 {[%clk 0:01:37]} 23. Bc7 {[%clk 0:02:18]}  Rxa1 {[%clk 0:01:24]} 24. Rxa1 {[%clk 0:02:16]}  Nxc5 {[%clk 0:01:24]} 25. dxc5 {[%clk 0:02:04]}  Qxc5 {[%clk 0:01:24]} 26. b7 {[%clk 0:02:04]}  Qxc7 {[%clk 0:01:23]} 27. bxc8=Q+ {[%clk 0:02:03]}  Qxc8 {[%clk 0:01:23]} 28. Ra7 {[%clk 0:02:04]}  Qe8 {[%clk 0:01:12]} 29. Rb7 {[%clk 0:01:57]}  Be5 {[%clk 0:01:05]} 30. h4 {[%clk 0:01:52]}  h5 {[%clk 0:01:03]} 31. Kg2 {[%clk 0:01:46]}  Kg7 {[%clk 0:01:02]} 32. Ra7 {[%clk 0:01:21]}  Bf6 {[%clk 0:00:58]} 33. g4 {[%clk 0:01:17]}  hxg4 {[%clk 0:00:52]} 34. Qxg4 {[%clk 0:01:18]}  Qc6 {[%clk 0:00:48]} 35. h5 {[%clk 0:01:16]}  g5 {[%clk 0:00:34]} 36. Qf3 {[%clk 0:01:03]}  Qb6 {[%clk 0:00:27]} 37. h6+ {[%clk 0:00:57]}  Kg6 {[%clk 0:00:24]} 38. Ra8 {[%clk 0:00:57]}  g4 {[%clk 0:00:03]} 39. Rg8+ {[%clk 0:00:53]}  Kxh6 {[%clk 0:00:01]} 40. Qxf6+ {[%clk 0:00:46]}  Kh7 {[%clk 0:00:01]} 41. Rh8# {[%clk 0:00:47]} 1-0


[Site "https://www.chess.com"]